Cogmind - Beta 11 @@@ ROGUE MODE // 2022.03.23 @ 15:01:47 Player: Demise Result: Destroyed by DAS Turret with DAS Cannon Performance ------------- Evolutions (1) 500 Regions Visited (5) 1000 Robots Destroyed (82) 410 Value Destroyed (1682) 1682 Prototype IDs (43) 860 Alien Tech Used (0) 0 Bonus (333) 333 TOTAL SCORE: 4785 Bonus ------- High Alert Combat Kills 44 Follower Combat Kills 32 Aligned with FarCom 300 Friendly Fire -43 Cogmind --------- Core Integrity 0/400 Matter 100/300 Energy 100/100 System Corruption 0% Temperature Cool (0) Movement Rolling (105) Ox1 Location -9/Exiles Parts ------- > --- POWER (1) -------- (None) > --- PROPULSION (2) --- Armored Wheel > --- UTILITY (4) ------ Large Storage Unit Armor Integrity Analyzer > --- WEAPON (2) ------- Mini Grenade Launcher > --- INVENTORY (15) --- Advanced Myomer Leg Gravity Neutralizer Experimental Targeting Computer Advanced Weapon Cycler AS-neutralizer No. 17b Heavy Assault Rifle 8R-AWN's Boregun Peak State ------------ > --- POWER ------------ Heavy Ion Engine > --- PROPULSION ------- Light Treads Armored Wheel > --- UTILITY ---------- Large Storage Unit Armor Integrity Analyzer Medium Armor Plating Hardened Light Armor Plating > --- WEAPON ----------- Heavy Assault Rifle Improved Assault Rifle > --- INVENTORY -------- Heavy Ion Engine Light Treads Light Treads Armored Wheel Armored Wheel Light Armor Plating Hacking Suite Authchip [R/Combat] Heavy Assault Rifle Mini Grenade Launcher Datajack Makeshift Axe EMP Trap EMP Trap EMP Trap [Rating: 22] Favorites ----------- Power Heavy Ion Engine Engine Heavy Ion Engine Power Core Light Nuclear Core Propulsion Light Treads Treads Light Treads Wheel Armored Wheel Utility Large Storage Unit Device Seismic Detector Storage Large Storage Unit Processor Armor Integrity Analyzer Hackware Hacking Suite Protection Hardened Light Armor Plating Weapon Heavy Assault Rifle Energy Gun Small Laser Ballistic Gun Heavy Assault Rifle Ballistic Cannon Improved Light Cannon Launcher Mini Grenade Launcher Special Melee Weapon Datajack Build | -11 -10 -10 -9 -9 -9 ------- Run | Scr Mat Min Mat Min Exi Slots Evolved 2 | . . . 2 . . Power . | . . . . . . Propulsion . | . . . . . . Utility 2 | . . . 2 . . Weapon . | . . . . . . Parts Attached 54 | 7 6 3 24 1 13 Power 5 | 1 1 . 2 . 1 Engine 4 | 1 . . 2 . 1 Core 1 | . 1 . . . . Reactor . | . . . . . . Propulsion 16 | 2 2 . 7 . 5 Treads 9 | 1 . . 6 . 2 Leg . | . . . . . . Wheel 7 | 1 2 . 1 . 3 Hover . | . . . . . . Flight . | . . . . . . Utility 16 | 2 1 . 10 1 2 Device 1 | 1 . . . . . Storage 3 | 1 1 . . . 1 Processor 1 | . . . . 1 . Hackware 1 | . . . 1 . . Protection 10 | . . . 9 . 1 Artifact . | . . . . . . Weapon 17 | 2 2 3 5 . 5 Energy Gun 1 | 1 . . . . . Energy Cannon . | . . . . . . Ballistic Gun 10 | 1 . 2 5 . 2 Ballistic Cannon 2 | . 2 . . . . Launcher 3 | . . 1 . . 2 Special Weapon . | . . . . . . Impact Weapon . | . . . . . . Slashing Weapon . | . . . . . . Piercing Weapon . | . . . . . . Special Melee Weapon 1 | . . . . . 1 Unidentified Prototypes 2 | . . . 2 . . Parts Lost 13 | . . . 1 . 12 Power 2 | . . . . . 2 Propulsion 5 | . . . . . 5 Utility 3 | . . . . . 3 Weapon 3 | . . . 1 . 2 Highest Loss Streak 11 | . . . 1 . 11 To Critical Strikes 7 | . . . . . 7 Average Slot Usage (%) 97 | . 100 100 98 100 89 Engine 8 | . 7 . 10 11 9 Core 3 | . 7 14 . . . Treads 12 | . 14 14 10 11 11 Wheel 11 | . 14 14 11 11 9 Device 5 | . 14 14 1 . . Storage 11 | . 14 14 11 11 9 Processor 3 | . . . . 6 11 Hackware 3 | . . . 10 4 . Protection 13 | . . . 19 22 19 Ballistic Gun 15 | . . 14 21 22 12 Ballistic Cannon 6 | . 26 12 . . . Naked Turns . | . . . . . . Heaviest Build 46 | 13 34 34 46 46 46 Greatest Support 40 | 20 12 12 20 12 40 Greatest Overweight (x) 3 | 1 2 2 3 3 3 Average Overweight (x) 2 | . 1 2 2 3 2 Largest Inventory Capacity 15 | 8 15 15 15 15 15 Average Capacity 13 | 6 10 15 15 15 13 Most Carried 15 | 3 13 15 15 15 15 Average Carried 12 | 2 9 14 14 15 10 Final Capacity 15 | 8 15 15 15 15 15 Final Carried 15 | 3 13 15 15 15 7 Class Distribution -------------------- 83% | Mutant 15% | Scavenger-Mutant Dominant Class ---------------- Mutant | -10/Materials Mutant | -10/Mines Mutant | -9/Materials Mutant | -9/Mines Mutant | -9/Exiles Resources | -11 -10 -10 -9 -9 -9 ----------- Run | Scr Mat Min Mat Min Exi Matter Collected 1979 | 286 416 95 794 204 184 Remotely . | . . . . . . Salvage Created 2413 | 181 374 76 1346 323 113 Parts 186 | 12 35 12 101 20 6 Haulers Intercepted 4 | . 2 . 2 . . Recyclers Shooed 1 | . . . 1 . . Parts Field Recycled . | . . . . . . Retrieved Matter . | . . . . . . Parts Self-Destructed . | . . . . . . Prevented . | . . . . . . Kills | -11 -10 -10 -9 -9 -9 ------- Run | Scr Mat Min Mat Min Exi Combat Hostiles Destroyed 63 | . 13 6 24 16 4 Guns 44 | . . 3 24 16 1 Cannons 14 | . 13 1 . . . AOE 5 | . . 2 . . 3 Classes Destroyed 13 | 2 6 . 3 2 . Worker 1 | . . . 1 . . Builder 1 | . . . 1 . . Tunneler 6 | 4 . 1 . 1 . Hauler 4 | . 2 . 2 . . Recycler 2 | 1 . . 1 . . Mechanic 1 | . 1 . . . . Operator 5 | . 3 . 2 . . Watcher 4 | . 1 . 3 . . Swarmer 27 | . 6 6 5 10 . Grunt 21 | . 7 . 11 3 . Sentry 8 | . . . 8 . . Demolisher 1 | . . . . 1 . Assembled 5 | . . . . 2 3 Best Kill Streak 5 | 3 5 3 5 4 3 Combat Bots Only 5 | . 5 3 3 4 3 Max Kills in Single Turn 3 | 1 2 3 2 2 3 Gunslinging 1 | . . . . 1 . Exploded 3 | . . 2 . . 3 Melee . | . . . . . . Uniques/NPCs Destroyed 1 | . . . . . 1 8R-AWN (-9/Exiles) Combat | -11 -10 -10 -9 -9 -9 -------- Run | Scr Mat Min Mat Min Exi Damage Taken 3089 | . 450 82 808 396 1353 Core 515 | . 88 . 74 86 267 Absorbed by Shields . | . . . . . . Regen/Repaired (Parts) 83 | . . . 83 . . Core Remaining (%) 82 | 100 . 64 . . . Volleys Fired 251 | 16 47 9 97 33 49 Largest 2 | 2 2 2 2 2 2 Hottest 78 | 60 78 78 46 46 46 Shots Fired 482 | 32 94 18 193 66 79 Gun 373 | 32 . 14 193 66 68 Cannon 97 | . 94 3 . . . Launcher 12 | . . 1 . . 11 Special . | . . . . . . Kinetic 454 | 16 94 17 193 66 68 Thermal 16 | 16 . . . . . Explosive 12 | . . 1 . . 11 Electromagnetic . | . . . . . . Robot Hit Streak 13 | 9 10 4 12 11 13 Robot Miss Streak 4 | 3 4 2 4 3 1 Penetration Max . | . . . . . . Secondary Targets 3 | . . . 2 1 . Max Gunslinging Chain 1 | . . . 1 1 . Shots Hit Robots 298 | 21 43 9 124 41 60 Core Hits 130 | 7 20 8 55 19 21 Critical Kills . | . . . . . . Critical Parts Destroyed . | . . . . . . Critical Strikes 4 | . 4 . . . . Blast 4 | . 4 . . . . Melee Attacks 4 | . . . . . 4 Impact . | . . . . . . Slashing . | . . . . . . Piercing . | . . . . . . Sneak Attacks 4 | . . . . . 4 Combat Hostiles . | . . . . . . Follow-up Attacks . | . . . . . . Damage Inflicted 5144 | 212 973 196 1750 689 1324 Guns 3609 | 212 . 82 1750 687 878 Cannons 996 | . 953 43 . . . Explosions 517 | . . 71 . . 446 Melee . | . . . . . . Ramming 22 | . 20 . . 2 . Kinetic 4451 | 58 953 125 1750 687 878 Thermal 154 | 154 . . . . . Explosive 517 | . . 71 . . 446 Electromagnetic . | . . . . . . Impact . | . . . . . . Slashing . | . . . . . . Piercing . | . . . . . . Highest Corruption 1 | . 1 1 . . . Average Corruption 1 | . 1 1 . . . Corruption Purged . | . . . . . . Corruption Blocked . | . . . . . . Effects 8 | . 4 4 . . . Message Errors 5 | . 2 3 . . . Heat Flow Errors 1 | . 1 . . . . Parts Rejected 1 | . 1 . . . . Data Loss (minor) 1 | . . 1 . . . Overload Shots . | . . . . . . Overflow Damage 27 | . 21 . . . 6 Projectiles 21 | . 21 . . . . Explosions 6 | . . . . . 6 Melee . | . . . . . . Knockbacks 9 | . 9 . . . . Impact . | . . . . . . Kinetic 9 | . 9 . . . . Secondary . | . . . . . . Self-Inflicted Damage 50 | . 10 . . 1 39 Shots 1 | . . . . . 1 Rammed 2 | . 1 . . 1 . Targets Rammed 2 | . 1 . . 1 . Kicked . | . . . . . . Crushed . | . . . . . . Highest Temperature 288 | 60 288 24 54 72 27 Average Temperature 21 | 31 33 6 13 13 13 Received Heat Transfer 483 | . 93 . 324 66 . Siege Activations . | . . . . . . Robots Corrupted . | . . . . . . Combat Hostiles . | . . . . . . Parts Fried . | . . . . . . Impact Corruptions . | . . . . . . Robots Melted . | . . . . . . Combat Hostiles . | . . . . . . Parts Melted . | . . . . . . Heat Transferred 350 | 350 . . . . . Parts Sabotaged . | . . . . . . Parts Stolen . | . . . . . . Parts Stripped . | . . . . . . Power Chain Reactions . | . . . . . . Missiles Intercepted . | . . . . . . Alert | -11 -10 -10 -9 -9 -9 ------- Run | Scr Mat Min Mat Min Exi Peak Influence 519 | 25 341 210 519 332 . Initial 192 | . 16 74 15 192 . Average 211 | 9 187 72 290 237 . Maximum Alert Level 2 | . 1 1 2 1 . Low Security (%) 49 | 100 44 98 29 42 . Level 1 36 | . 55 1 32 57 . Level 2 14 | . . . 37 . . Level 3 . | . . . . . . Level 4 . | . . . . . . Level 5 . | . . . . . . High Security . | . . . . . . Max Security . | . . . . . . Squads Dispatched 8 | . 5 . 3 . . Investigation 3 | . 2 . 1 . . Extermination . | . . . . . . Reinforcement 5 | . 3 . 2 . . Assault . | . . . . . . Garrison . | . . . . . . Intercept . | . . . . . . Searches Triggered . | . . . . . . Construction Impeded . | . . . . . . Haulers Reinforced . | . . . . . . Active Scanning Responses . | . . . . . . Cargo Convoy Interrupts . | . . . . . . Stealth | -11 -10 -10 -9 -9 -9 --------- Run | Scr Mat Min Mat Min Exi Distress Signals 5 | . 2 . 3 . . Communications Jammed . | . . . . . . Distress Signals . | . . . . . . Times Spotted 103 | . 25 6 38 19 15 Peak Tracking Total 9 | . 4 3 4 4 9 Tactical Retreats 5 | . 2 . 1 . 2 Traps | -11 -10 -10 -9 -9 -9 ------- Run | Scr Mat Min Mat Min Exi Traps Triggered 2 | . 2 . . . . Indirectly . | . . . . . . Trap Hack Attempts . | . . . . . . Triggered . | . . . . . . Disarmed . | . . . . . . Reprogrammed . | . . . . . . Reused 1 | . . . . . 1 Traps Extracted . | . . . . . . Installed 4 | . . . 1 . 3 Triggered . | . . . . . . Most Traps Carried 4 | . . 4 4 3 3 Exploded 3 | . . . . . 3 Machines | -11 -10 -10 -9 -9 -9 ---------- Run | Scr Mat Min Mat Min Exi Machines Disabled 10 | . 3 . . . 7 Max in Single Turn 2 | . 1 . . . 2 Machines Sabotaged . | . . . . . . Garrisons Compromised . | . . . . . . Overloaded Fab Kills . | . . . . . . Hacking | -11 -10 -10 -9 -9 -9 --------- Run | Scr Mat Min Mat Min Exi Machines Accessed 15 | . 3 . 10 . 2 Terminals 10 | . 2 . 8 . . Fabricators . | . . . . . . Repair Stations 1 | . . . 1 . . Recycling Units 1 | . 1 . . . . Scanalyzers 1 | . . . 1 . . Garrison Access . | . . . . . . Total Hacks 47 | . 11 . 34 . 2 Successful 27 | . 6 . 19 . 2 Failed 18 | . 4 . 14 . . Catastrophic 1 | . . . 1 . . Database Lockouts 2 | . 1 . 1 . . Manual 36 | . 9 . 26 . 1 Terminals 36 | . 6 . 30 . . Fabricators . | . . . . . . Repair Stations 2 | . . . 2 . . Recycling Units 5 | . 5 . . . . Scanalyzers 2 | . . . 2 . . Garrison Access . | . . . . . . Terminal Hacks 10 | . 1 . 7 . 2 Record 1 | . . . . . 1 Robot Analysis 4 | . 1 . 3 . . Prototype ID Bank 2 | . . . 2 . . Locate Traps 1 | . . . 1 . . Hauler Manifests 1 | . . . 1 . . EX-Prototype ID Bank 1 | . . . . . 1 Fabricator Hacks . | . . . . . . Repair Station Hacks 2 | . . . 2 . . Scan Component 1 | . . . 1 . . Repair 1 | . . . 1 . . Recycling Unit Hacks 1 | . 1 . . . . Retrieve Components 1 | . 1 . . . . Scanalyzer 2 | . . . 2 . . Insert Component 1 | . . . 1 . . Analyze 1 | . . . 1 . . Garrison Access Hacks . | . . . . . . Unauthorized Hacks 12 | . 4 . 8 . . Terminals 10 | . 2 . 8 . . Assimilate 1 | . . . 1 . . Botnet 6 | . 1 . 5 . . Operators 3 | . 1 . 2 . . Fabricators . | . . . . . . Repair Stations . | . . . . . . Recycling Units 2 | . 2 . . . . Recyclers 1 | . 1 . . . . Mask 1 | . 1 . . . . Scanalyzers . | . . . . . . Garrison Access . | . . . . . . Data Cores Recovered . | . . . . . . Used . | . . . . . . Hacking Detections 10 | . 2 . 8 . . Full Trace Events 2 | . 1 . 1 . . Feedback Events . | . . . . . . Feedback Blocked . | . . . . . . Robot Schematics Acquired . | . . . . . . Robots Built . | . . . . . . Authchips . | . . . . . . Time . | . . . . . . Total Robot Build Rating . | . . . . . . Part Schematics Acquired 1 | . . . 1 . . Parts Built . | . . . . . . Authchips . | . . . . . . Time . | . . . . . . Total Part Build Rating . | . . . . . . Parts Repaired 1 | . . . 1 . . Time 32 | . . . 32 . . Parts Recycled . | . . . . . . Recycled Matter . | . . . . . . Retrieved Matter . | . . . . . . Retrieved Components 4 | . 4 . . . . Parts Scanalyzed 1 | . . . 1 . . Part Schematics Acquired 1 | . . . 1 . . Parts Damaged . | . . . . . . Bothacking | -11 -10 -10 -9 -9 -9 ------------ Run | Scr Mat Min Mat Min Exi Used RIF Installer . | . . . . . . Robots Hacked 4 | . . . . . 4 Non-combat 3 | . . . . . 3 Combat 1 | . . . . . 1 Robot Hacks Applied 4 | . . . . . 4 parse_system 4 | . . . . . 4 Relay Couplers Released . | . . . . . . Fabnet Peak Effective % . | . . . . . . Robots Rewired . | . . . . . . Allies Hacked . | . . . . . . Hacks Repelled . | . . . . . . Allies | -11 -10 -10 -9 -9 -9 -------- Run | Scr Mat Min Mat Min Exi Total Allies 6 | . . 2 1 3 . Largest Group 4 | . . 2 2 4 1 Highest-Rated Group 51 | . . 51 51 50 10 Highest-Rated Ally 31 | . . 31 31 16 10 Total Orders 1 | . . . . . 1 STAY 1 | . . . . . 1 Ally Attacks 25 | . . . 13 12 . Total Damage 269 | . . . 144 125 . Kills 4 | . . . 2 2 . Allies Corrupted . | . . . . . . Allies Melted . | . . . . . . Intel | -11 -10 -10 -9 -9 -9 ------- Run | Scr Mat Min Mat Min Exi Robot Analysis Total 4 | . 1 . 3 . . Derelict Logs Recovered 3 | . . 1 . 2 . Drone Launches . | . . . . . . Drone Recoveries . | . . . . . . Exploration | -11 -10 -10 -9 -9 -9 ------------- Run | Scr Mat Min Mat Min Exi Turns Passed 4828 | 95 879 699 1494 716 945 Spaces Moved 2988 | 40 648 543 758 450 549 Core 2 | 2 . . . . . Treads 44 | 3 . . 35 . 6 Legs . | . . . . . . Wheels 2942 | 35 648 543 723 450 543 Hover . | . . . . . . Flight . | . . . . . . Fastest Speed 50 | 50 95 120 120 135 90 Average Speed 126 | 92 109 120 138 135 133 Slowest Speed 320 | 160 120 120 320 135 240 Overloaded Moves . | . . . . . . Propulsion Burnouts . | . . . . . . Robots Hopped . | . . . . . . Cave-ins Triggered . | . . . . . . Exploration Rate (%) 72 | 3 96 97 74 95 70 Regions Visited 5 Branch Regions 3 Pre-discovered Areas 3 | . . 1 . 1 1 Known Exits Taken . | . . . . . . Unknown Exits Taken 5 | 1 1 1 1 1 . Scrap Searched 2 | . . 1 . 1 . Spaces Dug . | . . . . . . Terrain Destroyed 21 | . 5 2 . . 14 Melee . | . . . . . . Projectile 5 | . 5 . . . . AOE 16 | . . 2 . . 14 Terrain Rammed . | . . . . . . Walls Destroyed . | . . . . . . Machines Disabled . | . . . . . . Actions | -11 -10 -10 -9 -9 -9 --------- Run | Scr Mat Min Mat Min Exi Total 3574 | 66 725 574 1028 492 689 Wait 177 | . 6 12 108 7 44 Move 2983 | 39 647 542 757 449 549 Hop . | . . . . . . Pick Up 45 | 4 11 5 14 . 11 Fast Attach 17 | 6 4 . 3 1 3 Attach 14 | 1 . . 6 . 7 Detach 3 | . 1 . . 1 1 Swap 23 | . 2 3 15 . 3 Drop 51 | . 6 3 27 . 15 Fire 251 | 16 47 9 97 33 49 Melee 4 | . . . . . 4 Ram 2 | . 1 . . 1 . Kick . | . . . . . . Crush . | . . . . . . Escape Stasis . | . . . . . . Rewire . | . . . . . . Trap 4 | . . . 1 . 3 Miscellaneous . | . . . . . . Route ------- -11/Scrapyard -10/Materials (discovered 4 exits: *Mat x3 / [*Min]) -10/Mines -9/Materials (discovered 4 exits: [*Mat] / [*Min] / [*Sto x2]) -9/Mines (discovered 3 exits: [*Mat x2] / *Exi) -9/Exiles (discovered 1 exit: [*Min]) History --------- Turn | Location | Event 2 | -11/Scrapyard | Met Revision 17 11 | -11/Scrapyard | Discovered new exit (range 16) 96 | -11/Scrapyard | Entered Materials 313 | -10/Materials | Build established: Mutant 325 | -10/Materials | Discovered new exit (range 14) 337 | -10/Materials | Discovered new exit (range 14) 514 | -10/Materials | Discovered new exit (range 9) 733 | -10/Materials | Discovered new exit (range 5) 749 | -10/Materials | Central database locked down 975 | -10/Materials | Entered Mines 988 | -10/Mines | Learned location of Storage (-9) 1300 | -10/Mines | Found a hidden stash of uninstalled traps 1361 | -10/Mines | Learned Materials terminal intel 1500 | -10/Mines | Discovered new exit (range 16) 1674 | -10/Mines | Entered Materials 1674 | -9/Materials | Accompanied by 2 allies 1674 | -9/Materials | Evolved 2 slots: Utility x2 1675 | -9/Materials | Loaded intel: 12 terminal locations 1679 | -9/Materials | Led the pair of lost Derelicts to an unsafe place 1915 | -9/Materials | Discovered new exit (range 5) 2274 | -9/Materials | Discovered new exit (range 16) 2697 | -9/Materials | Repaired Hvy. Assault Rifle 2819 | -9/Materials | Discovered new exit (range 3) 2820 | -9/Materials | Discovered new exit (range 7) 3084 | -9/Materials | Central database locked down 3168 | -9/Materials | Entered Mines 3168 | -9/Mines | Accompanied by 1 ally 3221 | -9/Mines | Met a Derelict bent on vengeance 3348 | -9/Mines | Assembled infested the area 3353 | -9/Mines | Assisted by a Guerilla fighting off Assembled 3356 | -9/Mines | Assisted by bots powering up and referring to "LRC-V3" 3364 | -9/Mines | Learned location of Zion (-7) 3613 | -9/Mines | Discovered new exit (range 5) 3666 | -9/Mines | Discovered new exit (range 10) 3879 | -9/Mines | Deemed a non-threat by the Exiles lab entrance 3879 | -9/Mines | Discovered new exit (range 5) 3884 | -9/Mines | Entered Exiles 3884 | -9/Exiles | Accompanied by 1 ally 3918 | -9/Exiles | Met 8R-AWN 3944 | -9/Exiles | Met EX-HEX 4004 | -9/Exiles | Met EX-DEC 4067 | -9/Exiles | Met EX-BIN 4088 | -9/Exiles | Aligned with FarCom system 4089 | -9/Exiles | Given EX-Vault access code 4120 | -9/Exiles | Opened EX-Vault 4153 | -9/Exiles | Warned to stay clear of 0b10 Research branches 4224 | -9/Exiles | Build established: Scavenger-Mutant 4243 | -9/Exiles | Discovered new exit (range 10) 4553 | -9/Exiles | Build established: Mutant 4572 | -9/Exiles | Attacked by the Exiles 4697 | -9/Exiles | Core integrity fell below 50% 4764 | -9/Exiles | Core integrity fell below 20% 4769 | -9/Exiles | Destroyed 8R-AWN 4779 | -9/Exiles | Found AS-neutralizer No. 17b 4781 | -9/Exiles | Found Exp. Targeting Computer 4790 | -9/Exiles | Found 8R-AWN's Boregun 4794 | -9/Exiles | Lost 11 parts (2p4n3u2w) 4829 | -9/Exiles | Destroyed by DAS Turret with DAS Cannon Last Messages --------------- 04763_ Penetrated by HV Slug. 04768_ HV Slug penetrates Wall. 04768_ Penetrated by HV Slug. 04769_ 8R-AWN destroyed. 04773_ Acquired Arm. Wheel. 04776_ Acquired Lrg. Storage Unit. 04779_ Acquired AS-neutralizer No. 17b. 04781_ Acquired Exp. Targeting Computer. 04783_ Acquired Adv. Myomer Leg. 04787_ Acquired Gravity Neutralizer. 04788_ Acquired Adv. Weapon Cycler. 04790_ Acquired 8R-AWN's Boregun. 04792_ Acquired Mni. Grenade Launcher. 04793_ Acquired 109 matter. 04803_ Acquired 4 matter. 04805_ Acquired 9 matter. 04806_ Acquired 2 matter. 04808_ Acquired 10 matter. 04813_ Machine disabled. 04826_ Arm. Wheel destroyed. Map ----- +----------------------------------------------------+ | ????????????????????????????????????#""""""?# | | ?????????????????????????????????????#"###??# | | ????????????????????????????????????????????# | | ????????????????????????????????????????????# | | ???????????????????????????????????????????## | | ???????????#######?????????????????????????#" | | #####??????#!!! "#?????????????????????????#" | | #""##?????# "#?????????????????????????#" | | #?????# "#?????????????????????????#" | | ##???## ""#????????????##???????????#" | | #####" ""#???????????? """????????#" | | ##" ""#????????????" """#???????## | | # #??????????????" ?????????# | | # ##????????????"" ?????????#" | | #### #####????????"" "#????????#" | | ???### #???????? ""?????????#" | | ##### ## #?????????" "?????????##" | | !""""" #?????????# #????????##"" | | ###" ######???### ###?######"" | | #?## "#####X# #"###""""""" | | !##??# """""" " "" | | """"" #"#???#" "" """ " | | ####"## #???#### " | | ???# ?# #??????### | | ??? ?# #????????### % | | ??# #?# #??????????## @ | | ??##??# #???????????## % | | ??????# #????????????# | | ??????# #????????????## """""" | | ??????? #????????????# ######""" | | ??????? ?????????????#" ""##????#### | | ??????? ????????????##"" """##????????? | | ??????? ????????????#" """##?????????? | | ??????? ????????????#" ""#??????????? | | ??????? ????????????#" ########??### | | ??????? ????????????#" ## ####"" | | ????????????????????#" t """" | | ????????????????????## | | ?????????????????????# | | ?????????????????????## | | ??????????????????????#" " | | ??????????????????????#"""" ""## ## | | ??????????????????????#"" ""#### ## | | ??????????????????????#" """"##??# #? | | ???????????????????????""" """#??## ## | | ???????????????????????? ""##??#! " | | ????????????????????????"" """##???#" | | ?????????????????????????""" #?????#" | | ??????????????????????????"""" #??????#!!""! | | ????????????????????????????? ???????###### | +----------------------------------------------------+ Best States ------------- Heat Dissipation 28 Energy Generation 14 Energy Capacity 280 Matter Stores 300 Matter Capacity 300 Sight Range 16 Terrain Scan Density 10 Armor Coverage 525 Evasion (%) 44 Armor Integrity Analysis 30 Recoil Reduction 2 Offensive Hacking 10 Authchip Count 1 Item Schematics ----------------- Hacking Suite | -9/Materials | Scanalyzed Robot Schematics ------------------ None Fabricated ------------ Nothing Alien Tech Used ----------------- None Achievements -------------- None Challenges ------------ None Game ------ Seed RelayExplosiveTearclaws Manual? 0 Play Time 00:38:55 Cumulative 473.1 hours Start 2022.03.23 @ 10:29:41 End 2022.03.23 @ 15:01:47 Sessions 5 Manual Loads 0 Difficulty Rogue Special Mode None Game No. 386 Rogue 386 Adventurer 0 Explorer 0 Win Type - Total 3 Types 2/0/0/1/0/0/0/0/0 Lore% 68 Gallery% 77 Achievement% 66 Wizard Run 0 Options --------- ASCII 0 Keyboard 1 Movement Numpad Keybinds 0 Fullscreen 1 Font 12/Terminus Map View 83x54 Tactical HUD 1 Map Filters NONE Filters NONE Steam 1 RUN: 2c74a571-ee70-4409-b28e-f069e5b1153e